[Event "LJ Slovak Open 2022"]
[Site "Liptovsky Jan"]
[Date "2022.06.26"]
[Round "6.10"]
[White "Bombek, Peter"]
[Black "Smetana, Peter"]
[Result "1-0"]
[ECO "A45"]
[WhiteElo "2111"]
[BlackElo "1740"]
[Annotator "NA RC"]
[PlyCount "26"]
[EventDate "2022.06.23"]
[EventType "swiss"]
[EventCountry "SVK"]
[SourceTitle "playchess.com"]
[Source "ChessBase"]
[SourceQuality "1"]
[TimeControl "3600+30"]

1. d4 {[%emt 0:00:04]} Nf6 {[%emt 0:00:41]} 2. Bg5 {[%emt 0:00:07]} e6 {[%emt 0:00:04]} 3. e4 {[%emt 0:00:10]} h6 {[%emt 0:00:04]} 4. Bxf6 {[%emt 0:00:05]} Qxf6 {[%emt 0:00:03]} 5. c3 {[%emt 0:00:08]} d5 {[%emt 0:00:15]} 6. Nd2 {[%emt 0:00:59]} c5 {[%emt 0:01:21]} 7. Qf3 {[%emt 0:02:19]} Qxf3 {[%emt 0:01:32]} 8. Ngxf3 {[%emt 0:00:14]} dxe4 {[%emt 0:00:18]} 9. Nxe4 {[%emt 0:00:13]} cxd4 {[%emt 0:00:26]} 10. Nxd4 {[%emt 0:01:26]} a6 {[%emt 0:01:40]} 11. f4 {[%emt 0:01:54]} Bd7 {[%emt 0:00:54]} 12. Be2 {[%emt 0:03:09]} Nc6 {[%emt 0:00:52]} 13. Nb3 {[%emt 0:00:23]} Be7 {[%emt 0:03:34]} 1-0

[Event "LJ Slovak Open 2022"]
[Site "Liptovsky Jan"]
[Date "2022.06.26"]
[Round "6.11"]
[White "Hurtuk, Radovan"]
[Black "Mirowska, Oliwia"]
[Result "1-0"]
[ECO "B01"]
[WhiteElo "2057"]
[BlackElo "1746"]
[Annotator "NA RC"]
[PlyCount "73"]
[EventDate "2022.06.23"]
[EventType "swiss"]
[EventCountry "SVK"]
[SourceTitle "playchess.com"]
[Source "ChessBase"]
[SourceQuality "1"]
[TimeControl "3600+30"]

1. e4 {[%emt 0:07:34]} d5 {[%emt 0:01:17]} 2. exd5 {[%emt 0:00:07]} Nf6 {[%emt 0:00:04]} 3. d4 {[%emt 0:00:20]} Nxd5 {[%emt 0:00:19]} 4. Nf3 {[%emt 0:00:31]} g6 {[%emt 0:00:30]} 5. c4 {[%emt 0:00:26]} Nf6 {[%emt 0:00:36]} 6. Nc3 {[%emt 0:00:25]} Bg7 {[%emt 0:00:23]} 7. Be2 {[%emt 0:00:36]} O-O {[%emt 0:00:57]} 8. O-O {[%emt 0:01:34]} c6 {[%emt 0:00:46]} 9. Bg5 {[%emt 0:01:07]} Na6 {[%emt 0:00:21]} 10. Qd2 {[%emt 0:00:25]} Bf5 {[%emt 0:01:06]} 11. Bh6 {[%emt 0:01:17]} Qd7 {[%emt 0:01:09]} 12. Rad1 {[%emt 0:03:13]} Rad8 {[%emt 0:00:23]} 13. a3 {[%emt 0:01:58]} Nc7 {[%emt 0:01:55]} 14. Bxg7 {[%emt 0:01:08]} Kxg7 {[%emt 0:00:06]} 15. Ne5 {[%emt 0:01:22]} Qc8 {[%emt 0:00:24]} 16. Rfe1 {[%emt 0:00:49]} Ne6 {[%emt 0:03:27]} 17. Qe3 {[%emt 0:01:39]} c5 {[%emt 0:05:35]} 18. d5 {[%emt 0:00:12]} Nd4 {[%emt 0:00:26]} 19. Rxd4 {[%emt 0:00:16]} cxd4 {[%emt 0:00:29]} 20. Qxd4 {[%emt 0:00:05]} h5 {[%emt 0:06:13]} 21. Qxa7 {[%emt 0:01:39]} Nd7 {[%emt 0:01:56]} 22. Qd4 {[%emt 0:02:13]} Kh7 {[%emt 0:01:32]} 23. Nf3 {[%emt 0:00:49]} Nf6 {[%emt 0:04:29]} 24. b4 {[%emt 0:01:28]} Qa8 {[%emt 0:02:36]} 25. a4 {[%emt 0:00:27]} Rfe8 {[%emt 0:08:24]} 26. a5 {[%emt 0:03:35]} Qb8 {[%emt 0:01:47]} 27. c5 {[%emt 0:03:17]} e5 {[%emt 0:06:11]} 28. Qd2 {[%emt 0:00:53]} Kg7 {[%emt 0:02:09]} 29. d6 {[%emt 0:00:26]} Bg4 {[%emt 0:02:26]} 30. h3 {[%emt 0:01:53]} e4 {[%emt 0:02:45]} 31. Nd4 {[%emt 0:00:37]} e3 {[%emt 0:01:22]} 32. fxe3 {[%emt 0:00:15]} Bxe2 {[%emt 0:00:43]} 33. Rxe2 {[%emt 0:00:12]} Qc8 {[%emt 0:00:37]} 34. e4 {[%emt 0:00:23]} Nd7 {[%emt 0:01:02]} 35. Nf3 {[%emt 0:00:41]} Qc6 {[%emt 0:00:45]} 36. Qd4+ {[%emt 0:00:32]} Kg8 {[%emt 0:00:09]} 37. Nd5 {[%emt 0:00:22]} 1-0

[Event "LJ Slovak Open 2022"]
[Site "Liptovsky Jan"]
[Date "2022.06.26"]
[Round "6.12"]
[White "Macka, Oto"]
[Black "Krestian, Darius"]
[Result "1-0"]
[ECO "A57"]
[WhiteElo "2026"]
[BlackElo "1659"]
[Annotator "NA RC"]
[PlyCount "41"]
[EventDate "2022.06.23"]
[EventType "swiss"]
[EventCountry "SVK"]
[SourceTitle "playchess.com"]
[Source "ChessBase"]
[SourceQuality "1"]
[TimeControl "3600+30"]

1. d4 {[%emt 0:00:03]} Nf6 {[%emt 0:00:15]} 2. c4 {[%emt 0:00:03]} c5 {[%emt 0:00:07]} 3. d5 {[%emt 0:00:03]} b5 {[%emt 0:00:08]} 4. cxb5 {[%emt 0:00:03]} a6 {[%emt 0:00:07]} 5. b6 {[%emt 0:00:02]} Qxb6 {[%emt 0:00:11]} 6. Nc3 {[%emt 0:00:04]} d6 {[%emt 0:00:16]} 7. e4 {[%emt 0:00:09]} g6 {[%emt 0:00:33]} 8. a4 {[%emt 0:00:40]} Bg7 {[%emt 0:03:27]} 9. a5 {[%emt 0:04:40]} Qc7 {[%emt 0:00:41]} 10. Be2 {[%emt 0:00:05]} O-O {[%emt 0:00:47]} 11. Nf3 {[%emt 0:00:03]} h6 {[%emt 0:01:57]} 12. Nd2 {[%emt 0:01:08]} e6 {[%emt 0:02:10]} 13. O-O {[%emt 0:00:58]} exd5 {[%emt 0:01:38]} 14. exd5 {[%emt 0:04:07]} Bb7 {[%emt 0:01:49]} 15. Nc4 {[%emt 0:00:09]} Nbd7 {[%emt 0:09:56]} 16. Bf4 {[%emt 0:03:57]} Ne8 {[%emt 0:01:42]} 17. h4 {[%emt 0:02:29]} Ne5 {[%emt 0:07:49]} 18. Bf3 {[%emt 0:01:59]} Qe7 {[%emt 0:12:24]} 19. Qe2 {[%emt 0:06:06]} Nc7 {[%emt 0:02:35]} 20. g3 {[%emt 0:06:43]} h5 {[%emt 0:08:51]} 21. Kg2 {[%emt 0:13:47]} 1-0

[Event "LJ Slovak Open 2022"]
[Site "Liptovsky Jan"]
[Date "2022.06.26"]
[Round "6.13"]
[White "Freibergs, Andrejs"]
[Black "Giertli, Vladimir"]
[Result "0-1"]
[ECO "C41"]
[WhiteElo "1526"]
[BlackElo "1988"]
[Annotator "NA RC"]
[PlyCount "90"]
[EventDate "2022.06.23"]
[EventType "swiss"]
[EventCountry "SVK"]
[SourceTitle "playchess.com"]
[Source "ChessBase"]
[SourceQuality "1"]
[TimeControl "3600+30"]

1. e4 {[%emt 0:00:03]} d6 {[%emt 0:03:13]} 2. d4 {[%emt 0:00:06]} Nf6 {[%emt 0:00:20]} 3. Nc3 {[%emt 0:00:07]} Nbd7 {[%emt 0:00:47]} 4. Nf3 {[%emt 0:01:36]} e5 {[%emt 0:00:13]} 5. dxe5 {[%emt 0:00:37]} dxe5 {[%emt 0:00:09]} 6. Bg5 {[%emt 0:00:50]} c6 {[%emt 0:01:49]} 7. Bc4 {[%emt 0:03:02]} Qc7 {[%emt 0:03:01]} 8. a3 {[%emt 0:02:41]} h6 {[%emt 0:00:13]} 9. Be3 {[%emt 0:03:08]} g5 {[%emt 0:01:27]} 10. b4 {[%emt 0:03:15]} Rg8 {[%emt 0:01:33]} 11. Qd3 {[%emt 0:01:27]} a5 {[%emt 0:00:14]} 12. b5 {[%emt 0:01:03]} Nc5 {[%emt 0:02:03]} 13. Bxc5 {[%emt 0:00:12]} Bxc5 {[%emt 0:00:09]} 14. Rd1 {[%emt 0:01:03]} Bg4 {[%emt 0:05:30]} 15. Na4 {[%emt 0:07:11]} cxb5 {[%emt 0:04:45]} 16. Bxb5+ {[%emt 0:01:26]} Kf8 {[%emt 0:00:06]} 17. Nxc5 {[%emt 0:00:42]} Qxc5 {[%emt 0:00:13]} 18. h3 {[%emt 0:18:35]} Bh5 {[%emt 0:07:46]} 19. a4 {[%emt 0:03:01]} Kg7 {[%emt 0:01:18]} 20. O-O {[%emt 0:01:28]} Rad8 {[%emt 0:01:12]} 21. Qe2 {[%emt 0:01:16]} g4 {[%emt 0:01:06]} 22. Rxd8 {[%emt 0:00:12]} Rxd8 {[%emt 0:00:06]} 23. hxg4 {[%emt 0:03:09]} Bxg4 {[%emt 0:00:03]} 24. Qc4 {[%emt 0:00:13]} Qe7 {[%emt 0:02:31]} 25. Qc3 {[%emt 0:00:34]} Bxf3 {[%emt 0:05:50]} 26. Qxf3 {[%emt 0:00:11]} Rd4 {[%emt 0:00:18]} 27. Re1 {[%emt 0:01:27]} Qd6 {[%emt 0:01:37]} 28. c3 {[%emt 0:00:31]} Rd2 {[%emt 0:00:53]} 29. Re3 {[%emt 0:00:31]} Rd1+ {[%emt 0:06:15]} 30. Kh2 {[%emt 0:00:27]} h5 {[%emt 0:00:18]} 31. Qf5 {[%emt 0:00:43]} Ng4+ {[%emt 0:00:18]} 32. Kg3 {[%emt 0:00:58]} Nxe3 {[%emt 0:00:13]} 33. fxe3 {[%emt 0:00:33]} Qg6+ {[%emt 0:01:21]} 34. Kf3 {[%emt 0:00:05]} Qf6 {[%emt 0:03:15]} 35. g3 {[%emt 0:00:24]} Rd2 {[%emt 0:00:50]} 36. g4 {[%emt 0:01:05]} hxg4+ {[%emt 0:01:50]} 37. Kxg4 {[%emt 0:00:05]} Qg6+ {[%emt 0:01:03]} 38. Qxg6+ {[%emt 0:00:33]} fxg6 {[%emt 0:00:17]} 39. Kf3 {[%emt 0:00:04]} Kf6 {[%emt 0:00:35]} 40. Kg4 {[%emt 0:00:11]} Rc2 {[%emt 0:00:46]} 41. c4 {[%emt 0:00:06]} Rc1 {[%emt 0:00:31]} 42. Kf3 {[%emt 0:00:15]} Kg5 {[%emt 0:00:12]} 43. Kg3 {[%emt 0:00:06]} Rc2 {[%emt 0:00:38]} 44. Kf3 {[%emt 0:00:08]} Kh4 {[%emt 0:00:07]} 45. c5 {[%emt 0:01:01]} Rxc5 {[%emt 0:00:15]} 0-1

[Event "LJ Slovak Open 2022"]
[Site "Liptovsky Jan"]
[Date "2022.06.26"]
[Round "6.14"]
[White "Bakalar, Jan"]
[Black "Szaszak, Robert"]
[Result "1/2-1/2"]
[ECO "C64"]
[WhiteElo "1916"]
[BlackElo "1717"]
[Annotator "NA RC"]
[PlyCount "41"]
[EventDate "2022.06.23"]
[EventType "swiss"]
[EventCountry "SVK"]
[SourceTitle "playchess.com"]
[Source "ChessBase"]
[SourceQuality "1"]
[TimeControl "3600+30"]

1. e4 {[%emt 0:00:09]} e5 {[%emt 0:00:06]} 2. Nf3 {[%emt 0:00:59]} Nc6 {[%emt 0:00:25]} 3. Bb5 {[%emt 0:03:43]} Bc5 {[%emt 0:00:30]} 4. d3 {[%emt 0:00:30]} d6 {[%emt 0:00:30]} 5. c3 {[%emt 0:00:30]} Bd7 {[%emt 0:00:30]} 6. Nbd2 {[%emt 0:01:29]} h6 {[%emt 0:00:14]} 7. b4 {[%emt 0:00:30]} Bb6 {[%emt 0:00:30]} 8. Nc4 {[%emt 0:00:30]} Nce7 {[%emt 0:01:08]} 9. Nxb6 {[%emt 0:03:42]} axb6 {[%emt 0:00:11]} 10. Bc4 {[%emt 0:07:15]} Nf6 {[%emt 0:00:47]} 11. Bb3 {[%emt 0:02:32]} Ng6 {[%emt 0:00:41]} 12. O-O {[%emt 0:00:30]} Qc8 {[%emt 0:02:19]} 13. Ne1 {[%emt 0:07:35]} Nh4 {[%emt 0:01:59]} 14. f3 {[%emt 0:06:25]} c5 {[%emt 0:02:25]} 15. g3 {[%emt 0:00:47]} Ng6 {[%emt 0:01:34]} 16. Bb2 {[%emt 0:02:14]} h5 {[%emt 0:01:10]} 17. h4 {[%emt 0:01:17]} Be6 {[%emt 0:01:11]} 18. Ng2 {[%emt 0:05:54]} d5 {[%emt 0:03:58]} 19. Kf2 {[%emt 0:09:02]} O-O {[%emt 0:01:40]} 20. a3 {[%emt 0:05:18]} Rd8 {[%emt 0:01:02]} 21. Qc1 {[%emt 0:04:55]} 1/2-1/2

[Event "LJ Slovak Open 2022"]
[Site "Liptovsky Jan"]
[Date "2022.06.26"]
[Round "6.15"]
[White "Kulich, Filip"]
[Black "Podjavorinsky, Michal"]
[Result "0-1"]
[ECO "B22"]
[WhiteElo "1682"]
[BlackElo "1941"]
[Annotator "NA RC"]
[PlyCount "120"]
[EventDate "2022.06.23"]
[EventType "swiss"]
[EventCountry "SVK"]
[SourceTitle "playchess.com"]
[Source "ChessBase"]
[SourceQuality "1"]
[TimeControl "3600+30"]

1. e4 {[%emt 0:00:09]} c5 {[%emt 0:00:07]} 2. Nf3 {[%emt 0:00:28]} e6 {[%emt 0:00:08]} 3. c3 {[%emt 0:00:07]} Nf6 {[%emt 0:00:10]} 4. e5 {[%emt 0:00:14]} Nd5 {[%emt 0:00:07]} 5. d4 {[%emt 0:00:29]} cxd4 {[%emt 0:00:23]} 6. cxd4 {[%emt 0:00:15]} d6 {[%emt 0:00:27]} 7. Bc4 {[%emt 0:00:47]} Be7 {[%emt 0:00:28]} 8. O-O {[%emt 0:01:22]} O-O {[%emt 0:00:10]} 9. Nc3 {[%emt 0:00:50]} Nxc3 {[%emt 0:00:47]} 10. bxc3 {[%emt 0:01:23]} Nc6 {[%emt 0:04:15]} 11. exd6 {[%emt 0:01:26]} Qxd6 {[%emt 0:01:08]} 12. Qc2 {[%emt 0:01:04]} b6 {[%emt 0:10:28]} 13. a4 {[%emt 0:07:43]} Bb7 {[%emt 0:02:05]} 14. Bd3 {[%emt 0:01:17]} h6 {[%emt 0:03:05]} 15. Rd1 {[%emt 0:03:39]} Rac8 {[%emt 0:02:58]} 16. Qb1 {[%emt 0:01:28]} Na5 {[%emt 0:03:34]} 17. Ne5 {[%emt 0:09:51]} Qd5 {[%emt 0:06:38]} 18. f3 {[%emt 0:03:00]} Rxc3 {[%emt 0:03:53]} 19. Kh1 {[%emt 0:01:25]} Rd8 {[%emt 0:08:54]} 20. Bh7+ {[%emt 0:01:33]} Kf8 {[%emt 0:00:31]} 21. Be4 {[%emt 0:11:40]} Qxe5 {[%emt 0:06:01]} 22. Bb2 {[%emt 0:03:00]} Qc7 {[%emt 0:01:09]} 23. Bxc3 {[%emt 0:00:50]} Qxc3 {[%emt 0:00:10]} 24. Bxb7 {[%emt 0:00:40]} Nxb7 {[%emt 0:00:06]} 25. Qh7 {[%emt 0:00:37]} Bf6 {[%emt 0:02:04]} 26. Rac1 {[%emt 0:00:29]} Rxd4 {[%emt 0:00:34]} 27. Rg1 {[%emt 0:01:49]} Qd2 {[%emt 0:01:41]} 28. Rc7 {[%emt 0:02:44]} Rd7 {[%emt 0:00:48]} 29. Qh8+ {[%emt 0:00:24]} Ke7 {[%emt 0:00:06]} 30. Rgc1 {[%emt 0:00:14]} Nc5 {[%emt 0:02:21]} 31. Rxd7+ {[%emt 0:00:38]} Nxd7 {[%emt 0:01:08]} 32. Qc8 {[%emt 0:00:54]} Nc5 {[%emt 0:00:44]} 33. Rg1 {[%emt 0:00:20]} Be5 {[%emt 0:00:47]} 34. Qa8 {[%emt 0:00:45]} Qf4 {[%emt 0:01:52]} 35. g3 {[%emt 0:00:21]} Qxa4 {[%emt 0:01:19]} 36. Qc8 {[%emt 0:00:47]} Qd7 {[%emt 0:00:38]} 37. Qh8 {[%emt 0:00:23]} Qd3 {[%emt 0:00:52]} 38. Qa8 {[%emt 0:00:11]} Qd7 {[%emt 0:01:15]} 39. Re1 {[%emt 0:00:37]} Bf6 {[%emt 0:00:53]} 40. Rf1 {[%emt 0:00:27]} Qb7 {[%emt 0:00:26]} 41. Qh8 {[%emt 0:00:14]} a5 {[%emt 0:01:03]} 42. Kg2 {[%emt 0:00:13]} a4 {[%emt 0:00:55]} 43. Rd1 {[%emt 0:00:19]} Nd7 {[%emt 0:00:13]} 44. Qh7 {[%emt 0:00:13]} Ne5 {[%emt 0:01:03]} 45. Rf1 {[%emt 0:00:21]} Ng6 {[%emt 0:00:25]} 46. h4 {[%emt 0:00:43]} Qd5 {[%emt 0:01:20]} 47. Rb1 {[%emt 0:00:57]} Qf5 {[%emt 0:00:34]} 48. Qg8 {[%emt 0:00:40]} Qxb1 {[%emt 0:00:24]} 49. Qc8 {[%emt 0:00:02]} Qa2+ {[%emt 0:00:25]} 50. Kh3 {[%emt 0:00:07]} Qd5 {[%emt 0:00:21]} 51. Qc7+ {[%emt 0:00:12]} Qd7 {[%emt 0:00:05]} 52. Qxb6 {[%emt 0:00:12]} Kf8 {[%emt 0:00:12]} 53. h5 {[%emt 0:00:17]} e5+ {[%emt 0:00:19]} 54. Kg2 {[%emt 0:00:16]} Ne7 {[%emt 0:00:12]} 55. Qb8+ {[%emt 0:00:18]} Nc8 {[%emt 0:00:12]} 56. Qb4+ {[%emt 0:00:04]} Be7 {[%emt 0:00:29]} 57. Qa5 {[%emt 0:00:08]} a3 {[%emt 0:00:16]} 58. g4 {[%emt 0:00:04]} e4 {[%emt 0:00:17]} 59. Kf2 {[%emt 0:00:16]} Qa7+ {[%emt 0:00:09]} 60. Qxa7 {[%emt 0:00:06]} Nxa7 {[%emt 0:00:04]} 0-1

[Event "LJ Slovak Open 2022"]
[Site "Liptovsky Jan"]
[Date "2022.06.26"]
[Round "6.16"]
[White "Kukan, Michal"]
[Black "Kasperek, Ryszard"]
[Result "0-1"]
[ECO "A23"]
[WhiteElo "1767"]
[BlackElo "2068"]
[Annotator "NA RC"]
[PlyCount "108"]
[EventDate "2022.06.23"]
[EventType "swiss"]
[EventCountry "SVK"]
[SourceTitle "playchess.com"]
[Source "ChessBase"]
[SourceQuality "1"]
[TimeControl "3600+30"]

1. c4 {[%emt 0:00:36]} e5 {[%emt 0:01:20]} 2. Nc3 {[%emt 0:00:16]} Nf6 {[%emt 0:00:38]} 3. g3 {[%emt 0:00:45]} c6 {[%emt 0:00:53]} 4. Bg2 {[%emt 0:00:42]} d5 {[%emt 0:00:18]} 5. cxd5 {[%emt 0:00:45]} cxd5 {[%emt 0:04:21]} 6. a3 {[%emt 0:00:40]} d4 {[%emt 0:19:32]} 7. Ne4 {[%emt 0:01:16]} Nd5 {[%emt 0:03:56]} 8. d3 {[%emt 0:06:47]} Be7 {[%emt 0:00:25]} 9. Qb3 {[%emt 0:02:50]} Nb6 {[%emt 0:00:47]} 10. Nd2 {[%emt 0:04:54]} O-O {[%emt 0:04:23]} 11. Nc4 {[%emt 0:01:26]} Nxc4 {[%emt 0:04:05]} 12. Qxc4 {[%emt 0:02:38]} Nc6 {[%emt 0:00:04]} 13. Bd2 {[%emt 0:01:13]} Be6 {[%emt 0:01:35]} 14. Qb5 {[%emt 0:02:30]} a6 {[%emt 0:01:59]} 15. Qa4 {[%emt 0:03:12]} Bd5 {[%emt 0:13:45]} 16. Bxd5 {[%emt 0:03:20]} Qxd5 {[%emt 0:00:03]} 17. Nf3 {[%emt 0:00:43]} b5 {[%emt 0:00:08]} 18. Qd1 {[%emt 0:00:37]} f5 {[%emt 0:00:10]} 19. O-O {[%emt 0:00:50]} e4 {[%emt 0:02:00]} 20. Ne1 {[%emt 0:01:07]} Ne5 {[%emt 0:02:46]} 21. Bf4 {[%emt 0:05:53]} Ng6 {[%emt 0:02:53]} 22. dxe4 {[%emt 0:01:46]} fxe4 {[%emt 0:00:09]} 23. Be3 {[%emt 0:01:20]} Rad8 {[%emt 0:00:13]} 24. Bc1 {[%emt 0:02:08]} h5 {[%emt 0:02:38]} 25. h3 {[%emt 0:04:11]} Qe6 {[%emt 0:01:08]} 26. Kh2 {[%emt 0:00:43]} Bd6 {[%emt 0:00:54]} 27. Ng2 {[%emt 0:00:37]} h4 {[%emt 0:01:36]} 28. Bg5 {[%emt 0:01:27]} hxg3+ {[%emt 0:00:05]} 29. fxg3 {[%emt 0:04:01]} Bxg3+ {[%emt 0:00:18]} 30. Kxg3 {[%emt 0:01:04]} Qe5+ {[%emt 0:00:30]} 31. Bf4 {[%emt 0:00:58]} Nxf4 {[%emt 0:00:00]} 32. Nxf4 {[%emt 0:01:27]} Qg5+ {[%emt 0:00:00]} 33. Kh2 {[%emt 0:01:06]} Rxf4 {[%emt 0:00:00]} 34. Qb3+ {[%emt 0:02:23]} Kh7 {[%emt 0:01:56]} 35. Qg3 {[%emt 0:01:20]} Qxg3+ {[%emt 0:00:04]} 36. Kxg3 {[%emt 0:00:33]} Rxf1 {[%emt 0:00:03]} 37. Rxf1 {[%emt 0:00:09]} Kg6 {[%emt 0:00:04]} 38. Kg4 {[%emt 0:01:27]} d3 {[%emt 0:01:52]} 39. exd3 {[%emt 0:00:11]} exd3 {[%emt 0:00:03]} 40. Rd1 {[%emt 0:00:17]} d2 {[%emt 0:00:04]} 41. Kf3 {[%emt 0:00:49]} Kh5 {[%emt 0:00:04]} 42. Ke2 {[%emt 0:03:14]} Kh4 {[%emt 0:00:05]} 43. b3 {[%emt 0:01:05]} g5 {[%emt 0:00:05]} 44. Rxd2 {[%emt 0:00:35]} Rxd2+ {[%emt 0:00:05]} 45. Kxd2 {[%emt 0:00:10]} Kxh3 {[%emt 0:00:04]} 46. Kc3 {[%emt 0:00:37]} g4 {[%emt 0:00:04]} 47. Kb4 {[%emt 0:00:35]} g3 {[%emt 0:00:03]} 48. Ka5 {[%emt 0:00:59]} g2 {[%emt 0:00:04]} 49. Kxa6 {[%emt 0:00:20]} g1=Q {[%emt 0:01:07]} 50. Kxb5 {[%emt 0:00:17]} Qf1+ {[%emt 0:01:21]} 51. Ka4 {[%emt 0:00:28]} Qa6+ {[%emt 0:00:09]} 52. Kb4 {[%emt 0:00:14]} Kg4 {[%emt 0:01:03]} 53. a4 {[%emt 0:00:11]} Kf5 {[%emt 0:00:02]} 54. Kc5 {[%emt 0:00:43]} Qa5+ {[%emt 0:00:17]} 0-1

[Event "LJ Slovak Open 2022"]
[Site "Liptovsky Jan"]
[Date "2022.06.26"]
[Round "6.17"]
[White "Gollner, Martin"]
[Black "Chlpek, Daniel"]
[Result "0-1"]
[ECO "B60"]
[WhiteElo "1585"]
[BlackElo "2030"]
[Annotator "NA RC"]
[PlyCount "81"]
[EventDate "2022.06.23"]
[EventType "swiss"]
[EventCountry "SVK"]
[SourceTitle "playchess.com"]
[Source "ChessBase"]
[SourceQuality "1"]
[TimeControl "3600+30"]

1. e4 {[%emt 0:00:03]} c5 {[%emt 0:00:11]} 2. Nf3 {[%emt 0:00:10]} Nc6 {[%emt 0:00:07]} 3. d4 {[%emt 0:00:34]} cxd4 {[%emt 0:00:05]} 4. Nxd4 {[%emt 0:00:05]} Nf6 {[%emt 0:00:05]} 5. Nc3 {[%emt 0:00:11]} d6 {[%emt 0:00:03]} 6. Bg5 {[%emt 0:02:34]} g6 {[%emt 0:03:42]} 7. Bxf6 {[%emt 0:00:34]} exf6 {[%emt 0:00:06]} 8. Bc4 {[%emt 0:07:22]} Bg7 {[%emt 0:00:06]} 9. Ndb5 {[%emt 0:02:43]} O-O {[%emt 0:00:08]} 10. Qxd6 {[%emt 0:02:14]} f5 {[%emt 0:00:06]} 11. O-O-O {[%emt 0:03:14]} Qb6 {[%emt 0:01:07]} 12. f3 {[%emt 0:08:29]} fxe4 {[%emt 0:01:04]} 13. fxe4 {[%emt 0:03:31]} Be5 {[%emt 0:07:28]} 14. Qd3 {[%emt 0:07:04]} a6 {[%emt 0:09:38]} 15. Nd5 {[%emt 0:02:31]} Qa5 {[%emt 0:01:37]} 16. Nbc3 {[%emt 0:01:49]} b5 {[%emt 0:03:15]} 17. Bb3 {[%emt 0:00:11]} Be6 {[%emt 0:03:01]} 18. h4 {[%emt 0:07:54]} h5 {[%emt 0:05:52]} 19. Rdf1 {[%emt 0:06:21]} Kg7 {[%emt 0:00:24]} 20. Kb1 {[%emt 0:04:31]} Rad8 {[%emt 0:03:47]} 21. Qe3 {[%emt 0:02:00]} Nd4 {[%emt 0:04:39]} 22. Rfg1 {[%emt 0:04:41]} Nxb3 {[%emt 0:00:37]} 23. cxb3 {[%emt 0:00:46]} b4 {[%emt 0:00:20]} 24. Na4 {[%emt 0:01:31]} Bxd5 {[%emt 0:01:10]} 25. exd5 {[%emt 0:00:01]} Qxd5 {[%emt 0:01:06]} 26. Rd1 {[%emt 0:00:16]} Qe6 {[%emt 0:02:07]} 27. Rde1 {[%emt 0:01:38]} Rfe8 {[%emt 0:01:12]} 28. Qc5 {[%emt 0:00:40]} Qf5+ {[%emt 0:03:30]} 29. Ka1 {[%emt 0:00:05]} Rd2 {[%emt 0:00:58]} 30. Qxb4 {[%emt 0:00:42]} Qc2 {[%emt 0:00:48]} 31. Rb1 {[%emt 0:00:25]} Rc8 {[%emt 0:06:17]} 32. Qa5 {[%emt 0:00:34]} Bf6 {[%emt 0:03:33]} 33. Qxa6 {[%emt 0:00:02]} Rc6 {[%emt 0:00:37]} 34. Qf1 {[%emt 0:00:28]} Rxg2 {[%emt 0:02:52]} 35. Qd1 {[%emt 0:00:51]} Qe4 {[%emt 0:00:49]} 36. Rc1 {[%emt 0:00:36]} Ra6 {[%emt 0:03:28]} 37. Rc4 {[%emt 0:00:41]} Qa8 {[%emt 0:00:23]} 38. Rf1 {[%emt 0:00:45]} Re6 {[%emt 0:01:25]} 39. Re1 {[%emt 0:00:36]} Qd8 {[%emt 0:01:01]} 40. Rc1 {[%emt 0:00:29]} Rd2 {[%emt 0:00:25]} 41. Qf3 {[%emt 0:00:12]} 0-1

[Event "LJ Slovak Open 2022"]
[Site "Liptovsky Jan"]
[Date "2022.06.26"]
[Round "6.18"]
[White "Verba, Vladimir"]
[Black "Ambrozi, Peter"]
[Result "1-0"]
[ECO "B25"]
[WhiteElo "1786"]
[BlackElo "1994"]
[Annotator "NA RC"]
[PlyCount "63"]
[EventDate "2022.06.23"]
[EventType "swiss"]
[EventCountry "SVK"]
[SourceTitle "playchess.com"]
[Source "ChessBase"]
[SourceQuality "1"]
[TimeControl "3600+30"]

1. e4 {[%emt 0:01:10]} c5 {[%emt 0:00:08]} 2. Nc3 {[%emt 0:00:09]} Nc6 {[%emt 0:00:24]} 3. g3 {[%emt 0:00:12]} g6 {[%emt 0:00:19]} 4. Bg2 {[%emt 0:01:24]} Bg7 {[%emt 0:01:04]} 5. f4 {[%emt 0:00:10]} d6 {[%emt 0:00:45]} 6. d3 {[%emt 0:00:09]} e6 {[%emt 0:02:09]} 7. Nf3 {[%emt 0:00:25]} Nge7 {[%emt 0:00:12]} 8. O-O {[%emt 0:00:07]} O-O {[%emt 0:00:30]} 9. Be3 {[%emt 0:00:11]} Nd4 {[%emt 0:00:56]} 10. e5 {[%emt 0:01:22]} Nef5 {[%emt 0:03:11]} 11. Bf2 {[%emt 0:00:17]} Nxf3+ {[%emt 0:00:58]} 12. Qxf3 {[%emt 0:00:07]} Nd4 {[%emt 0:00:39]} 13. Qd1 {[%emt 0:00:06]} dxe5 {[%emt 0:00:39]} 14. fxe5 {[%emt 0:00:08]} Rb8 {[%emt 0:07:25]} 15. Ne4 {[%emt 0:02:18]} b6 {[%emt 0:00:23]} 16. Nf6+ {[%emt 0:11:08]} Kh8 {[%emt 0:02:17]} 17. c3 {[%emt 0:00:22]} Nf5 {[%emt 0:00:26]} 18. g4 {[%emt 0:00:28]} Ne7 {[%emt 0:05:22]} 19. Bh4 {[%emt 0:05:30]} h6 {[%emt 0:02:54]} 20. Be4 {[%emt 0:04:45]} Bb7 {[%emt 0:05:36]} 21. Qf3 {[%emt 0:05:10]} Bxe4 {[%emt 0:00:15]} 22. dxe4 {[%emt 0:01:03]} Qc7 {[%emt 0:04:44]} 23. Rad1 {[%emt 0:05:23]} Rbd8 {[%emt 0:00:48]} 24. g5 {[%emt 0:02:30]} Rxd1 {[%emt 0:05:57]} 25. Rxd1 {[%emt 0:00:16]} Rd8 {[%emt 0:09:46]} 26. Rd6 {[%emt 0:12:30]} Rxd6 {[%emt 0:04:20]} 27. exd6 {[%emt 0:00:13]} Qxd6 {[%emt 0:00:21]} 28. Ne8 {[%emt 0:00:10]} Qe5 {[%emt 0:05:55]} 29. gxh6 {[%emt 0:00:24]} g5 {[%emt 0:01:33]} 30. hxg7+ {[%emt 0:01:27]} Kg8 {[%emt 0:00:13]} 31. Qh5 {[%emt 0:02:21]} Ng6 {[%emt 0:00:14]} 32. Bxg5 {[%emt 0:03:51]} 1-0

[Event "LJ Slovak Open 2022"]
[Site "Liptovsky Jan"]
[Date "2022.06.26"]
[Round "6.19"]
[White "Kolesar, Peter"]
[Black "Koska, Jiri"]
[Result "1/2-1/2"]
[ECO "B06"]
[WhiteElo "1969"]
[BlackElo "1759"]
[Annotator "NA RC"]
[PlyCount "51"]
[EventDate "2022.06.23"]
[EventType "swiss"]
[EventCountry "SVK"]
[SourceTitle "playchess.com"]
[Source "ChessBase"]
[SourceQuality "1"]
[TimeControl "3600+30"]

1. e4 {[%emt 0:00:04]} c6 {[%emt 0:00:07]} 2. d4 {[%emt 0:00:14]} g6 {[%emt 0:00:08]} 3. c3 {[%emt 0:01:44]} Bg7 {[%emt 0:00:41]} 4. Bc4 {[%emt 0:02:36]} d5 {[%emt 0:05:59]} 5. exd5 {[%emt 0:00:29]} cxd5 {[%emt 0:00:07]} 6. Bd3 {[%emt 0:00:15]} Nc6 {[%emt 0:01:57]} 7. Ne2 {[%emt 0:04:24]} e6 {[%emt 0:01:36]} 8. Ng3 {[%emt 0:02:31]} Qc7 {[%emt 0:03:50]} 9. Nd2 {[%emt 0:01:16]} Nge7 {[%emt 0:04:50]} 10. Nf3 {[%emt 0:03:12]} Bd7 {[%emt 0:01:43]} 11. Bd2 {[%emt 0:04:29]} O-O {[%emt 0:00:51]} 12. Qc2 {[%emt 0:00:06]} a6 {[%emt 0:00:43]} 13. O-O {[%emt 0:02:01]} f6 {[%emt 0:06:04]} 14. Ne1 {[%emt 0:15:58]} e5 {[%emt 0:06:34]} 15. dxe5 {[%emt 0:00:50]} fxe5 {[%emt 0:00:22]} 16. f3 {[%emt 0:00:15]} Rac8 {[%emt 0:04:18]} 17. Kh1 {[%emt 0:04:09]} Kh8 {[%emt 0:01:27]} 18. a3 {[%emt 0:02:12]} Qb6 {[%emt 0:09:54]} 19. Bg5 {[%emt 0:04:42]} Nf5 {[%emt 0:03:33]} 20. Nxf5 {[%emt 0:01:14]} Bxf5 {[%emt 0:00:08]} 21. Qd2 {[%emt 0:03:09]} e4 {[%emt 0:05:18]} 22. Be2 {[%emt 0:00:54]} exf3 {[%emt 0:03:05]} 23. Nxf3 {[%emt 0:01:08]} d4 {[%emt 0:01:30]} 24. Rac1 {[%emt 0:08:48]} dxc3 {[%emt 0:00:45]} 25. bxc3 {[%emt 0:00:48]} Be4 {[%emt 0:04:37]} 26. Nh4 {[%emt 0:01:03]} 1/2-1/2